bitfinex/quotes_SOLUSD_20241220
["timestamp","ask_amount","ask_price","bid_price","bid_amount"]
[1734677828541,39.68028406,188.24,188.17,39.68028406]
[1734677828939,0.58655391,188.23,188.15,39.68028406]
[1734677829642,39.68028406,188.22,188.15,39.68028406]
[1734677829854,0.58655391,188.21,188.13,39.68028406]
[1734677830037,13.86955391,188.21,188.13,39.68028406]
[1734677830235,0.58655391,188.21,188.13,39.68028406]
[1734677830631,39.68028406,188.22,188.15,39.68028406]
[1734677831162,40.26683797,188.24,188.17,39.68028406]
[1734677831364,2.8541,188.27,188.19,39.68028406]
[1734677831535,0.58655391,188.26,188.19,39.68028406]
[1734677831960,2.8541,188.27,188.22,39.68028406]
[1734677832233,39.68028406,188.32,188.24,39.68028406]
[1734677832437,39.68028406,188.32,188.26,39.68028406]
[1734677832660,0.58655391,188.31,188.24,39.68028406]
[1734677833358,0.58655391,188.31,188.23,39.68028406]
[1734677833655,39.68028406,188.32,188.25,39.68028406]
[1734677834038,43.26693797,188.34,188.27,39.68028406]
[1734677834238,3.0001,188.34,188.27,39.68028406]
[1734677834457,40.26683797,188.36,188.27,39.68028406]
[1734677834658,39.68028406,188.38,188.31,39.68028406]
[1734677834909,0.58655391,188.37,188.31,39.68028406]
[1734677835162,39.68028406,188.34,188.26,39.68028406]
[1734677835364,0.58655391,188.33,188.26,39.68028406]
[1734677836466,39.68028406,188.34,188.26,39.68028406]
[1734677836662,0.58655391,188.38,188.3,39.68028406]
[1734677836663,40.26683797,188.38,188.3,39.68028406]
[1734677837045,40.26683797,188.38,188.28,39.68028406]
[1734677837046,39.68028406,188.36,188.28,39.68028406]
[1734677837257,0.58655391,188.35,188.28,39.68028406]
[1734677837866,39.68028406,188.34,188.26,39.68028406]
[1734677838051,39.68028406,188.32,188.24,39.68028406]
[1734677838249,0.58655391,188.31,188.24,39.68028406]
[1734677839083,0.58655391,188.31,188.2,0.79672561]
[1734677839380,0.58655391,188.31,188.24,39.68028406]
[1734677839569,39.68028406,188.32,188.24,39.68028406]
[1734677839890,39.68028406,188.3,188.22,39.68028406]
[1734677840086,39.68028406,188.28,188.22,39.68028406]
[1734677840281,0.58655391,188.27,188.2,39.68028406]
[1734677840657,0.58655391,188.3,188.26,39.68028406]
[1734677840866,39.68028406,188.39,188.29,39.68028406]
[1734677841183,39.68028406,188.39,188.21,0.12549]
[1734677841184,0.58655391,188.4,188.33,39.68028406]
[1734677841357,39.68028406,188.43,188.35,39.68028406]
[1734677841557,0.58655391,188.42,188.35,39.68028406]
[1734677842175,39.68028406,188.43,188.35,39.68028406]
[1734677842480,0.58655391,188.42,188.35,39.68028406]
[1734677842782,39.68028406,188.43,188.35,39.68028406]
[1734677843152,0.58655391,188.42,188.35,39.68028406]
[1734677843884,39.68028406,188.43,188.35,39.68028406]
[1734677844079,0.58655391,188.42,188.35,39.68028406]
[1734677844379,39.68028406,188.43,188.35,39.68028406]
[1734677844987,0.58655391,188.44,188.37,39.68028406]
[1734677845875,0.58655391,188.44,188.38,39.68028406]
[1734677846495,40.26683797,188.47,188.4,39.68028406]
[1734677846668,40.26683797,188.47,188.41,39.68028406]
[1734677846669,0.58655391,188.47,188.41,39.68028406]
[1734677847001,2.9549,188.48,188.43,39.68028406]
[1734677847484,0.58655391,188.49,188.43,39.68028406]
[1734677848065,0.58655391,188.5,188.43,39.68028406]
[1734677848265,0.58655391,188.5,188.44,39.68028406]
[1734677848479,39.68028406,188.48,188.41,39.68028406]
[1734677848786,39.68028406,188.44,188.36,39.68028406]
[1734677848973,0.58655391,188.43,188.35,24.36854007]
[1734677849174,30.58655391,188.53,188.26,8.3187]
[1734677849358,30.58655391,188.53,188.26,6.3729]
[1734677849567,20.0,188.5,188.27,0.79645174]
[1734677849790,20.0,188.46,188.27,0.79645174]
[1734677850084,24.36854007,188.4,188.33,24.36854007]
[1734677850386,0.58655391,188.39,188.33,24.36854007]
[1734677850586,24.36854007,188.38,188.3,24.36854007]
[1734677850771,24.36854007,188.34,188.2,6.0702]
[1734677851083,0.58655391,188.33,188.25,24.36854007]
[1734677851295,0.58655391,188.33,188.27,24.36854007]
[1734677851475,0.58655391,188.34,188.27,24.36854007]
[1734677851669,0.58655391,188.34,188.28,24.36854007]
[1734677853087,0.58655391,188.36,188.28,24.36854007]
[1734677853659,24.36854007,188.34,188.25,24.36854007]
[1734677853862,24.36854007,188.3,188.22,24.36854007]
[1734677854058,24.95509398,188.29,188.22,24.36854007]
[1734677854267,0.58655391,188.29,188.23,24.36854007]
[1734677854483,0.58655391,188.3,188.24,24.36854007]
[1734677854692,24.36854007,188.33,188.26,24.36854007]
[1734677854869,24.95509398,188.34,188.27,24.36854007]
[1734677855069,24.36854007,188.36,188.28,24.36854007]
[1734677855285,24.36854007,188.37,188.29,24.36854007]
[1734677855460,0.58655391,188.36,188.3,24.36854007]
[1734677855662,0.58655391,188.37,188.31,24.36854007]
[1734677855859,24.36854007,188.41,188.29,23.776884]
[1734677856106,24.95509398,188.4,188.32,24.36854007]
[1734677856271,24.95509398,188.4,188.33,24.36854007]
[1734677856471,24.36854007,188.38,188.3,24.36854007]
[1734677856671,0.58655391,188.37,188.3,24.36854007]
[1734677856887,0.58655391,188.37,188.31,24.36854007]
[1734677857088,24.36854007,188.35,188.27,24.36854007]
[1734677857293,0.58655391,188.34,188.28,24.36854007]
[1734677859196,24.36854007,188.37,188.29,24.36854007]
[1734677859376,0.58655391,188.36,188.3,24.36854007]
[1734677859575,24.36854007,188.35,188.29,24.36854007]
[1734677859872,0.58655391,188.34,188.27,24.36854007]
[1734677860073,24.36854007,188.33,188.25,24.36854007]
[1734677860297,0.58655391,188.32,188.25,24.36854007]
[1734677860486,24.36854007,188.31,188.23,24.36854007]
[1734677860698,0.58655391,188.3,188.23,24.36854007]
[1734677861088,24.36854007,188.29,188.21,24.36854007]
[1734677861381,0.58655391,188.28,188.21,24.36854007]
[1734677861894,0.58655391,188.28,188.23,24.36854007]
[1734677862203,24.36854007,188.33,188.26,24.36854007]
[1734677862504,24.95509398,188.35,188.28,24.36854007]
[1734677862797,0.58655391,188.34,188.26,24.36854007]
[1734677862995,37.64304007,188.33,188.26,24.36854007]
[1734677863205,24.36854007,188.31,188.24,24.36854007]
[1734677863369,0.58655391,188.3,188.24,24.36854007]
[1734677864768,0.58655391,188.32,188.24,24.36854007]
[1734677864973,0.58655391,188.31,188.24,24.36854007]
[1734677865174,24.95509398,188.31,188.22,24.36854007]
[1734677865397,24.36854007,188.29,188.22,24.36854007]
[1734677865611,0.58655391,188.28,188.2,24.36854007]
[1734677867177,0.58655391,188.28,188.15,7.02605869]
[1734677867178,0.58655391,188.28,188.22,24.36854007]
[1734677867710,0.58655391,188.28,188.15,7.02605869]
[1734677867711,0.58655391,188.29,188.24,24.36854007]
[1734677868010,0.58655391,188.29,188.22,24.36854007]
[1734677868403,24.95509398,188.29,188.22,24.36854007]
[1734677868591,24.36854007,188.27,188.2,24.36854007]
[1734677868801,0.58655391,188.26,188.2,24.36854007]
[1734677869389,0.58655391,188.26,188.18,24.36854007]
[1734677871129,37.64874007,188.25,188.16,24.36854007]
[1734677871290,0.58655391,188.24,188.16,24.36854007]
[1734677872029,21.257954,188.36,188.22,24.36854007]
[1734677872197,24.36854007,188.32,188.25,24.36854007]
[1734677872394,0.58655391,188.31,188.25,24.36854007]
[1734677872597,0.58655391,188.35,188.27,24.36854007]
[1734677872791,24.95509398,188.36,188.29,24.36854007]
[1734677873011,24.36854007,188.38,188.31,24.36854007]
[1734677873198,24.36854007,188.4,188.31,24.36854007]
[1734677873418,0.58655391,188.39,188.31,24.36854007]
[1734677873727,24.36854007,188.38,188.29,24.36854007]
[1734677873897,0.58655391,188.37,188.29,24.36854007]
[1734677874097,24.36854007,188.36,188.29,24.36854007]
[1734677874296,0.58655391,188.35,188.27,24.36854007]
[1734677874524,24.36854007,188.34,188.27,24.36854007]
[1734677874701,0.58655391,188.33,188.27,24.36854007]
[1734677874905,24.36854007,188.34,188.27,24.36854007]
[1734677875099,0.58655391,188.33,188.27,24.36854007]
[1734677875515,0.58655391,188.33,188.23,0.79665762]
[1734677875723,0.58655391,188.33,188.25,24.36854007]
[1734677876437,24.36854007,188.32,188.25,24.36854007]
[1734677876598,0.58655391,188.31,188.23,24.36854007]
[1734677880522,24.36854007,188.3,188.23,24.36854007]
[1734677880700,0.58655391,188.29,188.23,24.36854007]
[1734677881626,0.58655391,188.29,188.21,24.36854007]
[1734677882125,24.36854007,188.3,188.23,24.36854007]
[1734677882423,24.36854007,188.32,188.25,24.36854007]
[1734677882604,0.58655391,188.31,188.25,24.36854007]
[1734677882804,0.58655391,188.31,188.23,24.36854007]
[1734677883320,24.36854007,188.3,188.23,24.36854007]
[1734677883528,24.36854007,188.32,188.25,24.36854007]
[1734677883728,24.95509398,188.34,188.25,24.36854007]
[1734677883932,24.36854007,188.32,188.25,24.36854007]
[1734677884126,0.58655391,188.31,188.23,24.36854007]
[1734677884535,24.36854007,188.3,188.23,24.36854007]
[1734677884731,0.58655391,188.29,188.23,24.36854007]
[1734677885242,24.36854007,188.28,188.21,24.36854007]
[1734677885412,0.58655391,188.27,188.21,24.36854007]
[1734677885608,0.58655391,188.27,188.19,24.36854007]
[1734677885825,24.36854007,188.24,188.17,24.36854007]
[1734677886015,24.36854007,188.22,188.15,24.36854007]
[1734677886217,0.58655391,188.21,188.15,24.36854007]
[1734677886639,0.58655391,188.21,188.13,24.36854007]
[1734677888138,24.36854007,188.22,188.15,24.36854007]
[1734677888808,24.36854007,188.18,188.11,24.36854007]
[1734677889008,0.58655391,188.17,188.11,24.36854007]
[1734677892008,24.36854007,188.2,188.13,24.36854007]
[1734677892210,0.58655391,188.19,188.13,24.36854007]
[1734677892416,24.95509398,188.2,188.13,24.36854007]
[1734677892617,0.58655391,188.19,188.13,24.36854007]
[1734677892842,0.58655391,188.2,188.13,24.36854007]
[1734677893138,24.36854007,188.21,188.13,24.36854007]
[1734677893341,24.36854007,188.22,188.15,24.36854007]
[1734677893637,24.36854007,188.23,188.15,24.36854007]
[1734677893828,24.36854007,188.23,188.16,24.36854007]
[1734677895241,24.36854007,188.25,188.18,24.36854007]
[1734677895420,24.95509398,188.27,188.18,24.36854007]
[1734677896533,24.36854007,188.27,188.18,24.36854007]
[1734677896734,24.36854007,188.29,188.22,24.36854007]
[1734677896950,24.36854007,188.31,188.22,24.36854007]
[1734677897642,24.36854007,188.35,188.26,24.36854007]
[1734677897854,19.5682,188.37,188.28,24.36854007]
[1734677897855,24.36854007,188.37,188.28,24.36854007]
[1734677898354,3.0108,188.38,188.3,24.36854007]
[1734677898560,24.36854007,188.43,188.31,0.79627962]
[1734677898715,24.36854007,188.45,188.38,24.36854007]
[1734677898916,3.73773081,188.42,188.4,24.36854007]
[1734677899324,24.36854007,188.49,188.4,24.36854007]
[1734677899530,0.58655391,188.48,188.4,24.36854007]
[1734677899734,24.36854007,188.49,188.4,24.36854007]
[1734677900130,24.36854007,188.47,188.4,24.36854007]
[1734677900328,24.36854007,188.45,188.37,24.36854007]
[1734677900839,24.36854007,188.47,188.39,24.36854007]
[1734677901050,24.36854007,188.47,188.41,24.36854007]
[1734677901452,24.36854007,188.45,188.38,24.36854007]
[1734677901748,24.36854007,188.45,188.36,24.36854007]
[1734677901947,24.36854007,188.44,188.36,24.36854007]
[1734677902474,9.1276,188.53,188.34,24.36854007]
[1734677902475,24.36854007,188.42,188.34,24.36854007]
[1734677902769,24.36854007,188.38,188.31,24.36854007]
[1734677902921,0.58655391,188.37,188.3,24.36854007]
[1734677903120,24.95509398,188.37,188.29,24.36854007]
[1734677903330,24.36854007,188.38,188.31,24.36854007]
[1734677903537,24.36854007,188.41,188.33,24.36854007]
[1734677903762,0.58655391,188.4,188.33,24.36854007]
[1734677904558,24.95509398,188.4,188.32,24.36854007]
[1734677904928,24.36854007,188.39,188.31,24.36854007]
[1734677905753,24.36854007,188.4,188.32,24.36854007]
[1734677906052,24.95509398,188.39,188.32,24.36854007]
[1734677907149,24.36854007,188.42,188.35,24.36854007]
[1734677907356,24.36854007,188.45,188.37,24.36854007]
[1734677907559,0.58655391,188.44,188.38,24.36854007]
[1734677907759,30.0,188.6,188.29,14.19892882]
[1734677907760,24.36854007,188.46,188.39,24.36854007]
[1734677907944,0.58655391,188.45,188.39,24.36854007]
[1734677908257,24.36854007,188.48,188.4,24.36854007]
[1734677908455,0.58655391,188.47,188.42,24.36854007]
[1734677908756,0.58655391,188.48,188.41,24.36854007]
[1734677909137,24.95509398,188.51,188.43,24.36854007]
[1734677909553,0.58655391,188.51,188.45,24.36854007]
[1734677909743,27.85869398,188.53,188.45,24.36854007]
[1734677910570,3.49015391,188.53,188.46,24.36854007]
[1734677910742,0.58655391,188.52,188.46,24.36854007]
[1734677910942,0.58655391,188.52,188.45,24.36854007]
[1734677911460,24.95509398,188.55,188.48,24.36854007]
[1734677911669,24.36854007,188.56,188.49,24.36854007]
[1734677911844,13.2559,188.6,188.49,24.36854007]
[1734677911845,0.58655391,188.55,188.49,20.0]
[1734677912036,0.58655391,188.63,188.55,24.36854007]
[1734677912239,21.81039191,188.64,188.57,24.36854007]
[1734677912444,3.36665391,188.67,188.61,24.36854007]
[1734677912764,0.58655391,188.66,188.59,24.36854007]
[1734677912940,0.58655391,188.66,188.6,24.36854007]
[1734677913356,0.58655391,188.66,188.59,24.36854007]
[1734677913538,24.95509398,188.66,188.58,24.36854007]
[1734677913862,0.58655391,188.66,188.58,24.36854007]
[1734677914053,0.58655391,188.66,188.6,24.36854007]
[1734677914659,0.58655391,188.66,188.62,24.36854007]
[1734677914833,2.7801,188.67,188.62,24.36854007]
[1734677915237,0.58655391,188.69,188.64,24.36854007]
[1734677915442,0.58655391,188.71,188.65,24.36854007]
[1734677915638,0.58655391,188.71,188.66,24.36854007]
[1734677915854,0.58655391,188.72,188.66,24.36854007]
[1734677916261,0.58655391,188.72,188.67,24.36854007]
[1734677916561,24.36854007,188.68,188.61,24.36854007]
[1734677916741,0.58655391,188.67,188.57,24.36854007]
[1734677916944,24.36854007,188.64,188.56,24.36854007]
[1734677917143,0.58655391,188.63,188.57,24.36854007]
[1734677917656,24.36854007,188.62,188.48,1.9496]
[1734677917854,24.36854007,188.6,188.53,24.36854007]
[1734677918044,24.95509398,188.59,188.52,24.36854007]
[1734677918368,0.58655391,188.59,188.53,24.36854007]
[1734677918555,27.28124007,188.61,188.53,24.36854007]
[1734677918749,0.58655391,188.6,188.55,24.36854007]
[1734677918954,0.58655391,188.6,188.54,24.36854007]
[1734677919455,2.9127,188.61,188.55,24.36854007]
[1734677919762,24.36854007,188.65,188.58,24.36854007]
[1734677919939,0.58655391,188.64,188.58,24.36854007]
[1734677920142,0.58655391,188.64,188.59,24.36854007]
[1734677920342,0.58655391,188.65,188.59,24.36854007]
[1734677920562,24.95509398,188.65,188.57,24.36854007]
[1734677921167,0.58655391,188.65,188.59,24.36854007]
[1734677921474,0.58655391,188.66,188.59,24.36854007]
[1734677921970,0.58655391,188.7,188.63,24.36854007]
[1734677922264,0.58655391,188.7,188.65,24.36854007]
[1734677922574,0.58655391,188.7,188.63,24.36854007]
[1734677922756,24.36854007,188.69,188.61,24.36854007]
[1734677922959,0.58655391,188.68,188.61,24.36854007]
[1734677923466,24.36854007,188.67,188.59,24.36854007]
[1734677923648,24.36854007,188.65,188.57,24.36854007]
[1734677923851,0.58655391,188.64,188.57,24.36854007]
[1734677924069,0.58655391,188.64,188.59,24.36854007]
[1734677924273,24.95509398,188.64,188.57,24.36854007]
[1734677924655,0.58655391,188.64,188.57,24.36854007]
[1734677925003,24.95509398,188.68,188.61,24.36854007]
[1734677925177,0.58655391,188.67,188.61,24.36854007]
[1734677928053,0.58655391,188.67,188.63,24.36854007]
[1734677928259,0.58655391,188.69,188.63,24.36854007]
[1734677928463,0.58655391,188.69,188.61,24.36854007]
[1734677929779,24.36854007,188.66,188.59,24.36854007]
[1734677929983,24.36854007,188.64,188.57,24.36854007]
[1734677930149,0.58655391,188.63,188.55,24.36854007]
[1734677930648,24.36854007,188.64,188.58,24.36854007]
[1734677930849,24.95509398,188.67,188.59,24.36854007]
[1734677931261,0.58655391,188.67,188.57,24.36854007]
[1734677931461,24.36854007,188.65,188.57,24.36854007]
[1734677931673,0.58655391,188.64,188.57,24.36854007]
[1734677932787,0.58655391,188.64,188.59,24.36854007]
[1734677932954,0.58655391,188.66,188.59,24.36854007]
[1734677933159,24.95509398,188.67,188.59,24.36854007]
[1734677933492,24.95509398,188.67,188.55,24.36854007]
[1734677933493,0.58655391,188.67,188.61,24.36854007]
[1734677934095,0.58655391,188.68,188.63,24.36854007]
[1734677934254,0.58655391,188.7,188.63,24.36854007]
[1734677934681,0.6468965,188.75,188.69,24.36854007]
[1734677934855,0.6468965,188.75,188.73,24.36854007]
[1734677936591,0.6468965,188.75,188.73,48.73708014]
[1734677936893,0.6468965,188.75,188.73,49.5315248]
[1734677937077,0.6468965,188.75,188.73,62.7776248]
[1734677937395,0.58655391,188.88,188.74,23.776884]
[1734677937598,0.58655391,188.88,188.82,24.36854007]
[1734677937905,27.71309398,188.91,188.84,24.36854007]
[1734677938469,3.34455391,188.91,188.84,24.36854007]
[1734677938674,2.758,188.91,188.86,24.36854007]
[1734677938997,0.58655391,188.9,188.84,24.36854007]
[1734677940034,27.12654007,188.91,188.84,24.36854007]
[1734677940477,2.758,188.91,188.84,24.36854007]
[1734677940799,0.58655391,188.9,188.84,24.36854007]
[1734677941794,0.58655391,188.92,188.84,24.36854007]
[1734677941997,75.6468965,188.93,188.88,24.36854007]
[1734677942494,75.6468965,188.93,188.9,24.36854007]
[1734677942810,75.6468965,188.93,188.92,24.36854007]
[1734677943304,75.6468965,188.93,188.91,24.36854007]
[1734677943919,75.6468965,188.93,188.91,48.73708014]
[1734677944792,75.6468965,188.93,188.92,24.36854007]
[1734677945113,26.4333,189.16,188.95,20.0]
[1734677945114,0.58655391,189.04,188.95,20.0]
[1734677945346,3.03,189.09,189.03,24.36854007]
[1734677945687,0.6468965,189.12,189.05,24.36854007]
[1734677946116,24.36854007,189.1,189.01,24.36854007]
[1734677946317,24.36854007,189.08,189.01,24.36854007]
[1734677946620,24.36854007,189.1,189.01,24.36854007]
[1734677946819,0.58655391,189.09,189.01,24.36854007]
[1734677946986,24.36854007,189.06,188.99,24.36854007]
[1734677947193,0.58655391,189.05,188.97,24.36854007]
[1734677947408,0.58655391,189.05,188.99,24.36854007]
[1734677947730,24.36854007,189.09,189.02,24.36854007]
[1734677948025,0.58655391,189.08,189.02,24.36854007]
[1734677948197,24.36854007,189.1,189.02,24.36854007]
[1734677948387,0.6468965,189.12,188.96,14.02322819]
[1734677948388,1.23345041,189.12,189.06,24.36854007]
[1734677948793,0.6468965,189.12,189.06,24.36854007]
[1734677949999,0.6468965,189.12,189.08,24.36854007]
[1734677950196,0.6468965,189.12,189.11,24.36854007]
[1734677950702,0.6468965,189.12,189.11,25.16159473]
[1734677950897,0.58655391,189.24,189.11,25.16159473]
[1734677950898,0.58655391,189.24,189.14,20.0]
[1734677951101,0.58655391,189.26,189.2,24.36854007]
[1734677951305,0.58655391,189.26,189.21,24.36854007]
[1734677951513,24.36854007,189.24,189.17,24.36854007]
[1734677951822,24.36854007,189.22,189.15,24.36854007]
[1734677952032,24.36854007,189.25,189.17,24.36854007]
[1734677952212,0.58655391,189.24,189.19,24.36854007]
[1734677952395,0.58655391,189.24,189.2,24.36854007]
[1734677952591,2.8852,189.27,189.22,24.36854007]
[1734677952795,2.8852,189.27,189.24,24.36854007]
[1734677953024,0.58655391,189.3,189.26,24.36854007]
[1734677953205,1.23345041,189.31,189.27,24.36854007]
[1734677953400,1.23345041,189.31,189.29,24.36854007]
[1734677953641,0.6468965,189.31,189.3,24.36854007]
[1734677954328,0.6468965,189.31,189.3,25.16066947]
[1734677954509,0.6468965,189.31,189.3,24.36854007]
[1734677955070,0.6468965,189.31,189.3,59.19343712]
[1734677955239,0.6468965,189.31,189.3,39.19343712]
[1734677955535,0.6468965,189.31,189.18,13.2146]
[1734677955697,0.6468965,189.31,189.15,0.7925624]
[1734677955899,0.6468965,189.31,189.27,39.19343712]
[1734677956114,0.6468965,189.31,189.28,39.19343712]
[1734677956339,0.6468965,189.31,189.26,39.19343712]
[1734677956632,39.19343712,189.3,189.23,39.19343712]
[1734677956834,0.58655391,189.29,189.24,39.19343712]
[1734677957015,0.58655391,189.3,189.26,39.19343712]
[1734677957211,2.9126,189.47,189.28,0.12549]
[1734677957423,0.6468965,189.5,189.32,0.12549]
[1734677957735,0.6468965,189.5,189.49,39.19343712]
[1734677957943,2.9126,189.62,189.49,78.38687424]
[1734677958239,21.116998,189.62,189.61,39.19343712]
[1734677958823,2.9126,189.7,189.61,78.38687424]
[1734677959022,2.9126,189.7,189.68,39.19343712]
[1734677959430,39.84033362,189.69,189.61,39.19343712]
[1734677959630,0.6468965,189.69,189.62,39.19343712]
[1734677960129,39.19343712,189.66,189.58,39.19343712]
[1734677960344,0.6468965,189.69,189.45,52.38893712]
[1734677960345,39.19343712,189.6,189.52,39.19343712]
[1734677960525,39.19343712,189.6,189.45,39.19343712]
[1734677960526,39.19343712,189.57,189.49,39.19343712]
[1734677960853,3.0177,189.56,189.49,39.19343712]
[1734677961347,23.776884,189.55,189.48,39.19343712]
[1734677961549,39.19343712,189.49,189.41,39.19343712]
[1734677961724,39.19343712,189.45,189.37,39.19343712]
[1734677961925,39.19343712,189.43,189.36,39.19343712]
[1734677962352,39.19343712,189.47,189.39,39.19343712]
[1734677962758,23.776884,189.42,189.36,39.19343712]
[1734677962963,23.776884,189.44,189.37,39.19343712]
[1734677963765,39.19343712,189.42,189.34,39.19343712]
[1734677963954,62.97032112,189.44,189.36,39.19343712]
[1734677964124,39.19343712,189.44,189.36,39.19343712]
[1734677964330,39.19343712,189.46,189.38,39.19343712]
[1734677964833,16.2066,189.56,189.42,39.19343712]
[1734677965059,3.0177,189.56,189.54,39.19343712]
[1734677965238,39.19343712,189.63,189.54,39.19343712]
[1734677965560,39.19343712,189.63,189.56,39.19343712]
[1734677965768,42.19433712,189.65,189.56,39.19343712]
[1734677966058,3.0009,189.65,189.6,39.19343712]
[1734677967144,3.0009,189.65,189.62,39.19343712]
[1734677967549,3.0009,189.65,189.58,39.19343712]
[1734677967950,3.0009,189.65,189.59,39.19343712]
[1734677968277,23.776884,189.64,189.57,39.19343712]
[1734677968639,39.19343712,189.61,189.53,39.19343712]
[1734677968938,23.776884,189.6,189.53,39.19343712]
[1734677969141,23.776884,189.6,189.54,39.19343712]
[1734677969446,62.97032112,189.61,189.54,39.19343712]
[1734677969679,23.776884,189.61,189.54,39.19343712]
[1734677969858,39.19343712,189.64,189.57,39.19343712]
[1734677970374,23.776884,189.63,189.56,39.19343712]
[1734677971155,23.776884,189.61,189.54,39.19343712]
[1734677971462,23.776884,189.62,189.56,39.19343712]
[1734677971663,23.776884,189.64,189.57,39.19343712]
[1734677971850,62.97032112,189.64,189.56,39.19343712]
[1734677972042,23.776884,189.62,189.56,39.19343712]
[1734677972242,23.776884,189.62,189.55,39.19343712]
[1734677972651,23.776884,189.64,189.59,39.19343712]
[1734677972852,23.776884,189.64,189.54,39.19343712]
[1734677972853,39.19343712,189.64,189.56,39.19343712]
[1734677973578,3.0009,189.65,189.6,39.19343712]
[1734677974180,3.0009,189.65,189.5,0.79120709]
[1734677974181,42.19433712,189.65,189.57,39.19343712]
[1734677974481,3.0009,189.65,189.61,39.19343712]
[1734677974778,3.0009,189.65,189.62,39.19343712]
[1734677975179,39.19343712,189.73,189.64,39.19343712]
[1734677975357,42.22283712,189.74,189.66,39.19343712]
[1734677975683,42.22283712,189.74,189.67,39.19343712]
[1734677976175,39.19343712,189.71,189.64,39.19343712]
[1734677976544,39.19343712,189.72,189.64,39.19343712]
[1734677976744,39.19343712,189.73,189.65,39.19343712]
[1734677976982,39.19343712,189.73,189.66,39.19343712]
[1734677977187,3.0294,189.74,189.67,39.19343712]
[1734677977775,39.19343712,189.72,189.64,39.19343712]
[1734677978080,39.19343712,189.72,189.57,20.0]
[1734677978081,3.0294,189.74,189.59,23.776884]
[1734677978285,3.0294,189.74,189.68,39.19343712]
[1734677980769,39.19343712,189.7,189.62,39.19343712]
[1734677980971,39.19343712,189.68,189.61,39.19343712]
[1734677981164,39.19343712,189.68,189.6,39.19343712]
[1734677981369,39.19343712,189.68,189.61,39.19343712]
[1734677981568,62.97032112,189.62,189.55,39.19343712]
[1734677981772,39.19343712,189.61,189.54,39.19343712]
[1734677981958,23.776884,189.62,189.45,39.19343712]
[1734677981959,2.9417,189.58,189.51,39.19343712]
[1734677982161,13.1902,189.54,189.39,0.79150409]
[1734677982388,39.19343712,189.53,189.41,3.12613764]
[1734677982562,62.97032112,189.53,189.36,39.98501209]
[1734677982894,39.19343712,189.49,189.41,39.19343712]
[1734677983199,39.19343712,189.43,189.36,39.19343712]
[1734677983395,39.19343712,189.43,189.35,39.19343712]
[1734677984000,23.776884,189.53,189.31,39.19343712]
[1734677984001,39.19343712,189.38,189.31,39.19343712]
[1734677984295,39.19343712,189.36,189.28,39.19343712]
[1734677984513,39.19343712,189.33,189.26,39.19343712]
[1734677984796,39.19343712,189.32,189.23,39.19343712]
[1734677985125,39.19343712,189.32,189.25,39.19343712]
[1734677985273,2.9839,189.41,189.27,39.19343712]
[1734677985274,39.19343712,189.34,189.27,39.19343712]
[1734677985803,39.19343712,189.3,189.23,39.19343712]
[1734677985967,39.19343712,189.3,189.21,39.19343712]
[1734677986896,13.2033,189.35,189.25,39.19343712]
[1734677986897,39.19343712,189.32,189.25,39.19343712]
[1734677987106,39.19343712,189.31,189.23,39.19343712]
[1734677987307,2.9839,189.41,189.25,39.19343712]
[1734677987308,39.19343712,189.32,189.25,39.19343712]
[1734677987617,39.19343712,189.32,189.18,39.98596234]
[1734677987618,2.9839,189.41,189.31,39.19343712]
[1734677987768,39.19343712,189.39,189.31,39.19343712]
[1734677987967,39.19343712,189.37,189.22,20.0]
[1734677988171,39.19343712,189.39,189.31,39.19343712]
[1734677988475,39.19343712,189.4,189.33,39.19343712]
[1734677988670,2.9839,189.41,189.34,39.19343712]
[1734677988928,39.19343712,189.4,189.33,39.19343712]
[1734677990011,39.19343712,189.44,189.37,39.19343712]
[1734677990214,45.49573712,189.48,189.41,39.19343712]
[1734677990388,39.19343712,189.48,189.41,39.19343712]
[1734677990587,39.19343712,189.48,189.39,39.19343712]
[1734677991080,39.19343712,189.48,189.41,39.19343712]
[1734677991292,39.19343712,189.48,189.4,39.19343712]
[1734677991784,39.19343712,189.5,189.42,39.19343712]
[1734677992194,39.19343712,189.54,189.46,39.19343712]
[1734677993682,23.776884,189.53,189.46,39.19343712]
[1734677993883,39.19343712,189.54,189.46,39.19343712]
[1734677994500,39.19343712,189.52,189.44,39.19343712]
[1734677994696,39.19343712,189.54,189.46,39.19343712]
[1734677994893,39.19343712,189.56,189.48,39.19343712]
[1734677995090,39.19343712,189.58,189.5,39.19343712]
[1734677995290,42.14533712,189.62,189.54,39.19343712]
[1734677995495,39.19343712,189.6,189.52,39.19343712]
[1734677995789,42.14533712,189.62,189.54,39.19343712]
[1734677996614,2.9519,189.62,189.56,39.19343712]
[1734677996817,39.19343712,189.68,189.6,39.19343712]
[1734677997296,39.19343712,189.66,189.58,39.19343712]
[1734677997497,39.19343712,189.62,189.55,39.19343712]
[1734677997994,0.6468965,189.69,189.49,0.79099547]
[1734677997995,39.19343712,189.66,189.58,39.19343712]
[1734677998205,39.19343712,189.64,189.56,39.19343712]
[1734677998385,39.19343712,189.66,189.58,39.19343712]
[1734677998583,0.6468965,189.69,189.52,13.1911]